bitfinex-derivatives/quotes_SOLF0:USTF0_20250413
["timestamp","ask_amount","ask_price","bid_price","bid_amount"]
[1744579155847,626.68,126.56,126.51,14.71692375]
[1744579156059,634.5839,126.56,126.52,7.9057]
[1744579156355,39.82,126.57,126.52,0.06055978]
[1744579156747,7.9044,126.55,126.52,0.06055978]
[1744579157151,7.9044,126.55,126.52,7.96655978]
[1744579158360,7.905,126.54,126.52,0.06055978]
[1744579158560,39.82,126.57,126.52,0.06055978]
[1744579158962,7.9045,126.55,126.52,0.06055978]
[1744579159160,39.82,126.57,126.52,0.06055978]
[1744579159763,7.9046,126.55,126.52,0.06055978]
[1744579159966,7.9046,126.55,126.47,364.0]
[1744579159967,14.71692375,126.56,126.45,14.71692375]
[1744579160264,7.9064,126.52,126.48,7.9082]
[1744579160762,39.82,126.53,126.48,7.9082]
[1744579160952,7.9062,126.52,126.48,7.9082]
[1744579161159,0.05250731,126.52,126.49,0.05633592]
[1744579161361,7.9073,126.5,126.49,0.05633592]
[1744579163565,39.87649985,126.52,126.49,0.05633592]
[1744579163861,7.9073,126.5,126.49,0.05633592]
[1744579164068,39.87649985,126.52,126.43,6.3223]
[1744579164262,39.82,126.52,126.43,6.3223]
[1744579165170,0.05220128,126.49,126.46,0.05507874]
[1744579165670,0.05220128,126.49,126.46,7.96457874]
[1744579166968,0.05220128,126.49,126.46,0.05507874]
[1744579167473,7.9086,126.48,126.46,0.05507874]
[1744579167968,7.96070128,126.49,126.46,0.05507874]
[1744579168165,0.05220128,126.49,126.46,0.05507874]
[1744579168571,0.05220128,126.49,126.46,7.96447874]
[1744579168763,0.05220128,126.49,126.46,0.05507874]
[1744579170068,0.05220128,126.49,126.47,7.9088]
[1744579170571,7.96030128,126.49,126.46,0.05507874]
[1744579170871,0.05220128,126.49,126.46,0.05507874]
[1744579171772,0.05220128,126.49,126.47,7.9089]
[1744579172073,39.82,126.56,126.46,427.39385582]
[1744579172272,39.82,126.56,126.52,7.906]
[1744579172776,47.7239,126.56,126.52,7.906]
[1744579172968,3.3783,126.58,126.53,7.9054]
[1744579173168,0.05539262,126.55,126.53,0.05801144]
[1744579173569,0.05539262,126.55,126.53,7.96321144]
[1744579174476,0.05539262,126.55,126.54,7.9048]
[1744579174873,0.05539262,126.55,126.53,0.05801144]
[1744579175772,7.95959262,126.55,126.53,0.05801144]
[1744579175978,39.87539262,126.55,126.53,0.05801144]
[1744579176373,47.77959262,126.55,126.53,0.05801144]
[1744579177077,39.87539262,126.55,126.53,0.05801144]
[1744579177482,39.87539262,126.55,126.53,7.96301144]
[1744579177779,39.87539262,126.55,126.53,0.05801144]
[1744579178579,39.87539262,126.55,126.53,7.96331144]
[1744579179178,39.87539262,126.55,126.53,0.05801144]
[1744579179480,0.05539262,126.55,126.53,0.05801144]
[1744579180677,0.05539262,126.55,126.54,7.9048]
[1744579182279,0.05539262,126.55,126.53,0.05801144]
[1744579182584,0.05539262,126.55,126.54,7.9048]
[1744579184685,0.05539262,126.55,126.53,7.96311144]
[1744579186287,0.05539262,126.55,126.54,7.9048]
[1744579186487,0.05539262,126.55,126.53,0.05801144]
[1744579186786,0.05539262,126.55,126.54,7.9048]
[1744579187088,0.05539262,126.55,126.53,0.05801144]
[1744579187687,0.05539262,126.55,126.53,7.96291144]
[1744579187986,0.05539262,126.55,126.53,0.05801144]
[1744579188482,666.14,126.62,126.54,14.68277779]
[1744579188681,39.68,126.65,126.58,14.68277779]
[1744579188885,39.68,126.68,126.6,14.68277779]
[1744579189084,39.68,126.68,126.62,14.68277779]
[1744579189279,7.8956,126.69,126.65,7.8976]
[1744579189479,39.68,126.71,126.62,14.68277779]
[1744579189690,39.68,126.71,126.66,0.05285218]
[1744579190586,7.8967,126.67,126.66,0.05285218]
[1744579190787,47.5767,126.67,126.66,0.05285218]
[1744579191487,39.68,126.67,126.6,368.1441]
[1744579191688,39.68,126.67,126.6,4.1441]
[1744579192289,7.8978,126.66,126.62,7.8998]
[1744579192490,0.05572483,126.65,126.62,7.95681376]
[1744579192689,0.05572483,126.65,126.62,0.05701376]
[1744579192890,0.05572483,126.65,126.64,7.8986]
[1744579193283,0.05572483,126.65,126.62,0.05701376]
[1744579193483,0.05572483,126.65,126.63,7.8988]
[1744579193687,0.05572483,126.65,126.62,0.05701376]
[1744579194094,0.05572483,126.65,126.64,7.8986]
[1744579194591,0.05572483,126.65,126.62,0.05701376]
[1744579194592,0.05572483,126.65,126.63,7.8987]
[1744579194792,0.05572483,126.65,126.62,0.05701376]
[1744579195893,0.05572483,126.65,126.64,7.8986]
[1744579196794,39.66,126.76,126.64,23.45267346]
[1744579196994,2.0588,126.74,126.64,23.45267346]
[1744579197191,39.66,126.76,126.67,23.45267346]
[1744579197496,39.66,126.76,126.68,43.755]
[1744579197788,39.66,126.76,126.71,0.06059618]
[1744579198496,47.5515,126.76,126.72,7.8934]
[1744579198794,39.66,126.76,126.71,0.06059618]
[1744579199691,7.8936,126.72,126.71,0.06059618]
[1744579199891,47.5336,126.72,126.71,0.06059618]
[1744579200292,39.64,126.72,126.71,0.06059618]
[1744579200990,47.5336,126.72,126.71,0.06059618]
[1744579201191,39.64,126.75,126.71,0.06059618]
[1744579201496,39.64,126.75,126.71,7.8942]
[1744579201793,47.5321,126.75,126.72,0.05648461]
[1744579202696,39.64,126.75,126.72,0.05648461]
[1744579204497,39.64,126.75,126.73,7.8929]
[1744579205298,39.64,126.78,126.72,0.05648461]
[1744579206191,7.8905,126.77,126.73,7.8926]
[1744579206493,39.64,126.78,126.72,0.05648461]
[1744579206694,665.5,126.81,126.76,7.8907]
[1744579207095,665.5,126.81,126.77,0.05886136]
[1744579207297,25.55607346,126.8,126.72,7.8931]
[1744579207497,26.90637346,126.8,126.66,6.2984]
[1744579207799,1.3503,126.8,126.67,23.45267346]
[1744579207997,665.5,126.81,126.68,39.64]
[1744579208296,0.05989647,126.76,126.73,0.05552325]
[1744579208496,7.892,126.75,126.68,39.64]
[1744579208699,7.892,126.75,126.73,0.05634729]
[1744579208894,0.05713052,126.73,126.7,7.8942]
[1744579209196,0.05713052,126.73,126.7,7.95351564]
[1744579209897,39.69713052,126.73,126.7,0.05931564]
[1744579210901,7.8942,126.71,126.7,0.05931564]
[1744579211401,47.59013052,126.73,126.7,0.05931564]
[1744579211600,39.69713052,126.73,126.7,0.05931564]
[1744579212102,47.59063052,126.73,126.7,0.05931564]
[1744579212401,39.69713052,126.73,126.7,0.05931564]
[1744579213196,7.8939,126.72,126.7,0.05931564]
[1744579215703,39.69713052,126.73,126.7,0.05931564]
[1744579216803,7.8942,126.71,126.7,0.05931564]
[1744579217398,39.69713052,126.73,126.7,0.05931564]
[1744579219303,7.8936,126.72,126.7,0.05931564]
[1744579219504,39.69713052,126.73,126.7,0.05931564]
[1744579220506,1.37386498,126.81,126.71,62.95267346]
[1744579220705,39.5,126.81,126.71,62.95267346]
[1744579220905,7.8887,126.8,126.71,62.95267346]
[1744579221205,7.8887,126.8,126.75,7.8913]
[1744579221504,7.8887,126.8,126.76,0.05394452]
[1744579222205,47.388,126.81,126.76,0.05394452]
[1744579222406,47.388,126.81,126.76,7.94494452]
[1744579222706,47.388,126.81,126.76,0.05394452]
[1744579222906,39.5,126.81,126.76,0.05394452]
[1744579223406,7.8898,126.79,126.76,0.05394452]
[1744579224909,7.8897,126.79,126.76,0.05394452]
[1744579225510,39.5,126.81,126.76,0.05394452]
[1744579225706,2.77289104,126.8,126.76,0.05394452]
[1744579226006,7.8898,126.78,126.76,0.05394452]
[1744579226205,39.5,126.77,126.76,0.05394452]
[1744579234109,39.5,126.77,126.76,7.94504452]
[1744579234315,39.5,126.77,126.76,0.05394452]
[1744579235314,47.3888,126.8,126.76,7.94474452]
[1744579235518,47.3888,126.8,126.76,7.8908]
[1744579235718,47.3888,126.8,126.77,0.05856627]
[1744579238026,7.8893,126.79,126.77,0.05856627]
[1744579239326,39.5,126.8,126.77,0.05856627]
[1744579240327,7.8892,126.79,126.77,0.05856627]
[1744579240529,39.5,126.8,126.77,0.05856627]
[1744579240718,7.8893,126.79,126.77,0.05856627]
[1744579240924,54.13940903,126.8,126.77,0.05856627]
[1744579241228,7.8898,126.78,126.77,0.05856627]
[1744579242530,39.5,126.8,126.77,0.05856627]
[1744579243430,47.389,126.8,126.77,0.05856627]
[1744579245130,7.8893,126.79,126.77,0.05856627]
[1744579247534,7.8898,126.78,126.77,0.05856627]
[1744579247834,7.8898,126.78,126.69,16.73240903]
[1744579247835,14.63940903,126.78,126.69,2.093]
[1744579248033,14.63940903,126.76,126.69,2.093]
[1744579248234,7.8933,126.73,126.69,9.9882]
[1744579248934,7.94942883,126.72,126.7,0.06055062]
[1744579249638,39.36,126.71,126.7,0.06055062]
[1744579250538,47.2542,126.71,126.7,0.06055062]
[1744579256344,0.05552883,126.72,126.7,0.06055062]
[1744579257644,0.05552883,126.72,126.7,7.95525062]
[1744579258144,0.05552883,126.72,126.7,0.06055062]
[1744579260845,626.67367517,126.82,126.7,0.06055062]
[1744579261042,14.63940903,126.8,126.69,14.63940903]
[1744579261243,1.42704768,126.79,126.69,14.63940903]
[1744579261648,14.63940903,126.8,126.69,14.63940903]
[1744579261941,7.8914,126.76,126.73,0.0499431]
[1744579262145,47.2714,126.76,126.73,0.0499431]
[1744579263247,7.892,126.75,126.73,0.0499431]
[1744579264547,47.2714,126.76,126.73,0.0499431]
[1744579265147,7.8918,126.75,126.73,0.0499431]
[1744579266649,39.38,126.76,126.73,0.0499431]
[1744579267250,7.8917,126.75,126.73,0.0499431]
[1744579267647,39.38,126.76,126.73,0.0499431]
[1744579271051,54.01940903,126.76,126.73,0.0499431]
[1744579271257,54.01940903,126.76,126.66,4.1372]
[1744579271258,14.63940903,126.74,126.66,4.1372]
[1744579271451,639.87940903,126.74,126.66,4.1372]
[1744579271651,7.8957,126.69,126.66,2.0187]
[1744579271853,47.2557,126.69,126.66,2.0187]
[1744579272459,47.30606884,126.69,126.66,2.07842428]
[1744579272662,7.8962,126.68,126.66,2.07842428]
[1744579273361,47.30606884,126.69,126.66,2.07842428]
[1744579274865,7.8961,126.68,126.66,2.07842428]
[1744579276066,7.8967,126.67,126.66,2.07842428]
[1744579276259,7.8967,126.67,126.66,0.05972428]
[1744579276460,39.41036884,126.69,126.66,0.05972428]
[1744579277859,7.8967,126.67,126.66,0.05972428]
[1744579282072,0.05036884,126.69,126.66,0.05972428]
[1744579282370,39.26,126.74,126.68,14.63940903]
[1744579282670,47.1526,126.74,126.7,7.8944]
[1744579283575,39.26,126.74,126.71,0.05817235]
[1744579283975,39.26,126.74,126.72,7.8935]
[1744579284177,39.26,126.74,126.71,0.05817235]
[1744579284475,39.26,126.74,126.71,7.95197235]
[1744579284775,47.1524,126.74,126.71,7.95197235]
[1744579285475,625.44,126.8,126.71,0.05817235]
[1744579285675,625.44,126.8,126.72,14.63940903]
[1744579285973,625.44,126.8,126.74,0.05674803]
[1744579286473,625.44,126.8,126.74,7.94874803]
[1744579287380,625.44,126.8,126.74,0.05674803]
[1744579287879,7.8895,126.79,126.74,0.05674803]
[1744579288081,7.8895,126.79,126.75,7.8912]
[1744579288577,7.8895,126.79,126.76,7.8907]
[1744579289184,633.3288,126.8,126.76,7.8907]
[1744579289682,633.3288,126.8,126.77,0.0542159]
[1744579291783,625.44,126.8,126.77,7.9445159]
[1744579292185,39.26,126.81,126.77,0.0542159]
[1744579292379,39.26,126.81,126.79,7.8892]
[1744579292885,39.26,126.81,126.78,7.8896]
[1744579293086,39.24,126.84,126.77,0.0542159]
[1744579293383,39.24,126.84,126.81,7.8876]
[1744579293783,39.24,126.84,126.81,7.93942659]
[1744579294285,14.63940903,126.83,126.68,39.24]
[1744579294485,14.63940903,126.83,126.73,4.1828]
[1744579294983,7.8887,126.8,126.75,7.8914]
[1744579295183,39.22,126.79,126.75,7.8914]
[1744579295375,47.1092,126.79,126.76,0.0499377]
[1744579295577,0.05001339,126.78,126.76,0.0499377]
[1744579296989,0.05001339,126.78,126.76,7.9410377]
[1744579297391,39.22,126.83,126.76,0.0499377]
[1744579297584,39.22,126.83,126.76,2.1983377]
[1744579297779,7.8877,126.82,126.78,7.8895]
[1744579298188,39.22,126.83,126.76,2.1484]
[1744579298487,7.8871,126.83,126.79,7.8889]
[1744579298986,39.22,126.84,126.79,7.8889]
[1744579299487,7.8869,126.83,126.79,7.8889]
[1744579299987,7.8869,126.83,126.78,0.05352417]
[1744579300480,7.8869,126.83,126.79,7.8888]
[1744579301987,7.8869,126.83,126.8,7.8885]
[1744579302590,47.1058,126.85,126.81,7.8876]
[1744579302793,47.1058,126.85,126.79,1.9763]
[1744579303181,47.1058,126.85,126.8,0.05254543]
[1744579304291,39.22,126.85,126.8,0.05254543]
[1744579304586,16.77700903,126.89,126.8,0.05254543]
[1744579304890,39.22,126.88,126.79,16.61570903]
[1744579305190,39.22,126.88,126.83,0.05382407]
[1744579305389,47.1039,126.88,126.85,7.8853]
[1744579305693,39.22,126.88,126.85,7.8853]
[1744579306291,7.8834,126.89,126.85,7.8853]
[1744579306693,7.8834,126.89,126.86,0.05785244]
[1744579307395,47.1024,126.9,126.86,0.05785244]
[1744579307991,47.1024,126.9,126.86,7.94235244]
[1744579308490,624.8,126.99,126.9,7.8822]
[1744579308693,55.14483484,126.97,126.9,7.8822]
[1744579308895,1.42542581,126.96,126.9,7.8822]
[1744579309093,7.8797,126.95,126.93,0.05067177]
[1744579311489,39.08,126.96,126.93,0.05067177]
[1744579311898,7.8799,126.95,126.93,0.05067177]
[1744579312396,39.08,126.96,126.93,0.05067177]
[1744579312896,7.8799,126.95,126.93,0.05067177]
[1744579313096,39.08,126.96,126.93,0.05067177]
[1744579313998,7.8798,126.95,126.93,0.05067177]
[1744579314203,2.1409,127.0,126.93,0.05067177]
[1744579314493,39.06,127.02,126.93,0.05067177]
[1744579314797,39.06,127.02,126.97,7.8779]
[1744579315296,39.06,127.02,126.96,0.05454747]
[1744579316193,7.8772,126.99,126.96,0.05454747]
[1744579316395,39.06,127.02,126.96,0.05454747]
[1744579316898,7.8774,126.98,126.96,0.05454747]
[1744579317395,626.5594,127.05,126.96,0.05454747]
[1744579317703,626.5594,127.05,126.93,1.9876]
[1744579317704,39.06,127.05,126.97,7.8776]
[1744579317894,7.8756,127.01,126.99,0.05558663]
[1744579318089,14.63940903,127.06,126.99,0.05558663]
[1744579318295,40.48359338,127.05,126.99,0.05558663]
[1744579318495,39.06,127.05,126.99,0.05558663]
[1744579318798,14.63940903,127.06,126.99,0.05558663]
[1744579319001,39.04,127.05,126.99,0.05558663]
[1744579319297,7.8753,127.02,126.99,0.05558663]
[1744579319498,46.9153,127.02,126.99,0.05558663]
[1744579319691,39.04,127.02,126.99,0.05558663]
[1744579322109,7.8759,127.01,126.99,0.05558663]
[1744579322401,39.04,127.02,126.99,0.05558663]
[1744579322602,46.9153,127.02,126.99,0.05558663]
[1744579323303,39.04,127.02,127.0,7.8761]
[1744579323505,39.04,127.05,127.0,7.8761]
[1744579323907,7.8739,127.04,127.01,0.05084577]
[1744579324406,39.04,127.05,127.01,7.92634577]
[1744579324605,39.04,127.05,127.01,0.05084577]
[1744579325005,39.04,127.05,127.02,7.8748]
[1744579325205,663.42,127.1,127.01,14.6902548]
[1744579325406,663.42,127.1,127.02,2.1129]
[1744579325700,14.63940903,127.15,127.04,0.05474396]
[1744579325899,14.63940903,127.15,127.05,14.63940903]
[1744579326099,14.63940903,127.15,127.08,7.92771163]
[1744579326295,14.63940903,127.15,127.08,0.05681163]
[1744579326507,53.67940903,127.15,127.08,0.05681163]
[1744579326706,7.87,127.1,127.08,0.05681163]
[1744579326907,39.04,127.11,127.08,0.05681163]
[1744579327103,7.8706,127.09,127.08,0.05681163]
[1744579327304,360.0,127.08,126.85,15.7705]
[1744579327507,23.31162002,127.04,126.89,4.2361]
[1744579327707,23.31162002,127.01,126.92,7.8807]
[1744579327907,43.1722,127.0,126.89,4.2361]
[1744579328106,43.1722,127.0,126.89,41.02386168]
[1744579328407,7.8783,126.97,126.91,7.8816]
[1744579328706,7.92860425,126.96,126.93,0.05162863]
[1744579329008,0.04990425,126.96,126.93,0.05162863]
[1744579331208,0.04990425,126.96,126.94,7.8799]
[1744579331909,0.04990425,126.96,126.93,7.93202863]
[1744579332109,0.04990425,126.96,126.93,0.05162863]
[1744579332306,46.8955,127.02,126.93,0.05162863]
[1744579332506,663.04,127.09,126.94,23.31162002]
[1744579332807,7.8733,127.05,126.95,4.0957]
[1744579332999,4.1926,127.08,126.96,39.02]
[1744579333404,7.8738,127.04,126.99,7.8763]
[1744579333610,7.8738,127.04,127.01,0.04988512]
[1744579333907,7.8732,127.05,127.01,7.92528512]
[1744579334101,4.1926,127.08,127.01,0.04988512]
[1744579334299,39.02,127.12,127.01,0.04988512]
[1744579334505,7.8706,127.09,127.04,7.8731]
[1744579334799,39.02,127.12,127.05,0.05595664]
[1744579335709,7.871,127.09,127.05,0.05595664]
[1744579335910,39.02,127.12,127.05,0.05595664]
[1744579336611,7.8701,127.1,127.05,0.05595664]
[1744579336909,62.33162002,127.12,127.05,0.05595664]
[1744579337313,7.8715,127.08,127.05,0.05595664]
[1744579338112,39.02,127.12,127.05,0.05595664]
[1744579338807,7.8704,127.1,127.06,7.8724]
[1744579339112,39.02,127.12,127.06,7.8724]
[1744579339309,7.8696,127.11,127.07,0.05691692]
[1744579340005,39.02,127.12,127.07,0.05691692]
[1744579340206,7.87,127.1,127.07,0.05691692]
[1744579340412,39.02,127.12,127.07,0.05691692]
[1744579340713,7.8697,127.11,127.07,0.05691692]
[1744579341410,7.8701,127.1,127.07,0.05691692]
[1744579341913,39.02,127.12,127.07,0.05691692]
[1744579342110,7.8712,127.08,127.07,0.05691692]
[1744579342613,7.872,127.07,127.03,7.8739]
[1744579342813,39.02,127.12,127.03,7.8739]
[1744579343314,7.8718,127.08,127.03,7.8739]
[1744579343511,39.02,127.12,127.03,7.8739]
[1744579343711,39.02,127.12,127.04,7.8734]
[1744579344012,7.8716,127.08,127.06,0.05796554]
[1744579345511,0.05105801,127.09,127.06,0.05796554]
[1744579346107,7.8716,127.08,127.06,0.05796554]
[1744579348419,0.05105801,127.09,127.06,0.05796554]
[1744579348814,0.05105801,127.09,127.06,7.93006554]
[1744579349015,0.05105801,127.09,127.06,0.05796554]
[1744579350318,0.05105801,127.09,127.07,7.8715]
[1744579350828,0.05105801,127.09,127.06,0.05796554]
[1744579351022,7.8683,127.13,127.06,0.05796554]
[1744579351223,7.8683,127.13,127.05,38.9]
[1744579351423,38.9,127.14,127.06,7.872]
[1744579351625,2.1155,127.13,127.06,7.872]
[1744579352026,7.8704,127.1,127.06,7.872]
[1744579352325,7.8704,127.1,127.08,0.05637482]
[1744579352525,7.8706,127.09,127.08,0.05637482]
[1744579352719,0.02376984,127.1,127.08,0.05637482]
[1744579353120,7.8706,127.09,127.08,0.05637482]
[1744579353324,0.02376984,127.1,127.08,0.05637482]
[1744579353828,7.89416984,127.1,127.08,0.05637482]
[1744579355328,7.89386984,127.1,127.08,0.05637482]
[1744579355723,0.02376984,127.1,127.08,0.05637482]
[1744579356726,7.89406984,127.1,127.08,0.05637482]
[1744579357728,7.8706,127.09,127.08,0.05637482]
[1744579358535,7.872,127.07,127.01,4.0869]
[1744579358731,7.872,127.07,127.04,7.8736]
[1744579358931,7.872,127.07,127.01,42.9869]
[1744579359129,7.8726,127.06,127.01,42.9869]
[1744579359334,7.8726,127.06,127.02,7.8746]
[1744579359833,0.05658516,127.05,127.03,0.05796217]
[1744579364738,0.05658516,127.05,127.04,7.8737]
[1744579365139,0.05658516,127.05,127.03,0.05796217]
[1744579366535,7.92978516,127.05,127.03,0.05796217]
[1744579367739,7.92978516,127.05,126.98,368.0316]
[1744579367740,0.05658516,127.05,126.98,1.9871]
[1744579367939,38.95658516,127.05,126.98,1.9871]
[1744579368344,7.8747,127.03,126.99,7.8766]
[1744579368942,7.8747,127.03,127.0,0.05179107]
[1744579369243,7.92618632,127.02,127.0,0.05179107]
[1744579369440,0.05088632,127.02,127.0,0.05179107]
[1744579369742,7.8756,127.01,127.0,0.05179107]
[1744579370445,38.8,127.01,126.94,9.18763139]
[1744579370844,7.8779,126.98,126.94,17.06743139]
[1744579371045,16.75629364,127.0,126.94,9.18763139]
[1744579371545,7.878,126.97,126.96,0.05940577]
[1744579371844,0.05637925,126.98,126.94,9.18763139]
[1744579372043,38.8,126.97,126.94,9.18763139]
[1744579372845,38.8,126.97,126.94,9.24615119]
[1744579373052,7.8793,126.95,126.94,2.50325119]
[1744579373446,7.8793,126.95,126.94,0.0585198]
[1744579373747,7.8823,126.91,126.86,6.1901]
[1744579373944,38.82,126.92,126.86,4.0606]
[1744579374145,38.82,126.92,126.84,67.69492558]
[1744579374146,38.82,126.92,126.85,7.8853]
[1744579374347,7.8828,126.9,126.85,7.8853]
[1744579374650,38.82,126.92,126.85,7.8853]
[1744579374845,7.8828,126.9,126.85,7.8853]
[1744579375046,0.0562141,126.9,126.87,0.05665093]
[1744579375751,623.8762141,126.9,126.87,0.05665093]
[1744579375944,7.8836,126.88,126.87,0.05665093]
[1744579376150,38.82,126.88,126.84,28.87492558]
[1744579376547,23.3690045,126.86,126.83,73.50105117]
[1744579376848,23.3690045,126.86,126.82,194.70805077]
[1744579377249,0.0540899,126.85,126.83,9.555e-05]
[1744579377439,38.82,126.84,126.82,181.25134632]
[1744579377638,23.3690045,126.83,126.81,146.06022793]
[1744579377842,624.02,126.82,126.81,28.43233473]
[1744579378048,624.02,126.82,126.72,35.63486854]
[1744579378648,0.051309,126.78,126.76,0.05985169]
[1744579378849,38.84,126.77,126.76,0.05985169]
[1744579379344,46.7305,126.77,126.76,0.05985169]
[1744579379951,38.84,126.77,126.72,27.74136854]
[1744579380153,62.2090045,126.77,126.72,27.74136854]
[1744579380646,7.893,126.73,126.72,27.74136854]
[1744579380847,38.84,126.73,126.71,73.97698277]
[1744579381148,7.8936,126.72,126.71,74.02922349]
[1744579381740,7.9,126.72,126.69,14.38783473]
[1744579381942,38.89900676,126.73,126.69,14.38783473]
[1744579382147,23.3690045,126.71,126.62,7.8996]
[1744579382347,23.3690045,126.71,126.59,6.2271]
[1744579382553,23.3690045,126.71,126.59,4.245]
[1744579383049,0.05597084,126.66,126.64,0.05058106]
[1744579383254,663.54,126.65,126.64,0.05058106]
[1744579383461,663.54,126.65,126.54,6.3448]
[1744579383954,0.05390334,126.61,126.58,0.05031564]
[1744579384158,38.91390334,126.61,126.58,0.05031564]
[1744579385756,0.05390334,126.61,126.58,0.05031564]
[1744579386556,0.05390334,126.61,126.56,4.05376379]
[1744579386954,38.88,126.64,126.56,4.05376379]
[1744579387156,38.88,126.64,126.59,23.3690045]
[1744579387450,26.48507014,126.67,126.62,23.3690045]
[1744579387647,26.48507014,126.67,126.65,23.3690045]
[1744579388158,26.54397016,126.67,126.65,23.4263044]
[1744579388755,663.9,126.71,126.65,0.0572999]
[1744579389855,7.8956,126.69,126.65,0.0572999]
[1744579390056,7.95609998,126.69,126.65,0.0572999]
[1744579391158,0.06049998,126.69,126.65,0.0572999]
[1744579391854,0.06049998,126.69,126.66,7.8971]
[1744579392060,0.06049998,126.69,126.65,0.0572999]
[1744579392656,0.06049998,126.69,126.65,7.9545999]
[1744579393150,0.06049998,126.69,126.65,0.0572999]
[1744579394160,0.06049998,126.69,126.66,7.8969]
[1744579396958,0.06049998,126.69,126.67,7.8967]
[1744579397165,0.06049998,126.69,126.65,0.0572999]
[1744579397461,0.06049998,126.69,126.65,7.9548999]
[1744579398262,0.06049998,126.69,126.63,2.0349]
[1744579398557,38.88,126.71,126.64,23.3690045]
[1744579398762,38.82,126.74,126.71,7.8939]
[1744579399056,38.82,126.74,126.68,23.3690045]
[1744579399265,125.37490318,126.76,126.73,7.8924]
[1744579399564,125.37490318,126.76,126.71,23.3690045]
[1744579399861,125.42554826,126.76,126.74,7.8919]
[1744579400054,122.13234826,126.76,126.73,0.05333188]
[1744579400664,0.05064508,126.76,126.75,7.8917]
[1744579400961,0.05064508,126.76,126.71,22.48087556]
[1744579401564,0.05064508,126.76,126.75,7.8917]
[1744579403763,0.05064508,126.76,126.74,0.05526222]
[1744579406171,0.05064508,126.76,126.74,7.94726222]
[1744579406564,0.05064508,126.76,126.74,0.05526222]
[1744579406867,38.82,126.8,126.74,0.05526222]
[1744579407573,672.107,126.83,126.74,23.42426672]
[1744579407775,38.8,126.83,126.8,7.888]
[1744579408177,38.85928816,126.83,126.8,0.05955791]
[1744579408672,0.05928816,126.83,126.8,0.05955791]
[1744579408873,0.05928816,126.83,126.82,7.8873]
[1744579409171,0.05928816,126.83,126.8,0.05955791]
[1744579409572,38.8,126.86,126.83,7.8863]
[1744579409963,38.8,126.86,126.8,23.3690045]
[1744579410169,816.2103387,126.89,126.85,7.8855]
[1744579410370,190.9703387,126.89,126.8,23.3690045]
[1744579410568,38.8,126.9,126.81,38.8]
[1744579410766,0.06051605,126.86,126.83,0.05019884]
[1744579411070,0.06051605,126.86,126.85,7.8855]
[1744579413076,38.78,126.94,126.83,23.41920334]
[1744579413473,7.8809,126.93,126.83,23.3690045]
[1744579413678,38.78,126.94,126.83,23.3690045]
[1744579413976,46.6605,126.94,126.83,23.3690045]
[1744579414277,0.05255626,126.9,126.89,7.8826]
[1744579414465,38.78,126.94,126.89,7.8826]
[1744579414668,38.78,126.94,126.91,7.8814]
[1744579414979,0.0606583,126.93,126.91,7.8814]
[1744579415178,0.0606583,126.93,126.91,7.93433467]
[1744579415477,0.0606583,126.93,126.91,0.05293467]
[1744579415870,7.8811,126.92,126.91,0.05293467]
[1744579417181,15.7611,126.92,126.91,0.05293467]
[1744579417481,7.8811,126.92,126.91,0.05293467]
[1744579417679,7.8831,126.89,126.84,2.039]
[1744579418982,0.05761095,126.88,126.85,0.05160503]
[1744579419782,7.94151095,126.88,126.85,0.05160503]
[1744579420083,0.05761095,126.88,126.85,0.05160503]
[1744579420283,7.8846,126.87,126.85,0.05160503]
[1744579420586,38.76,126.86,126.85,0.05160503]
[1744579420884,38.76,126.86,126.77,2.1047]
[1744579421487,7.8879,126.82,126.77,9.9947]
[1744579421681,38.76,126.81,126.76,2.1469]
[1744579421883,38.76,126.81,126.76,10.0376]
[1744579422083,0.05616353,126.8,126.77,0.05182711]
[1744579423887,0.05616353,126.8,126.77,7.94212711]
[1744579425483,0.05616353,126.8,126.77,0.05182711]
[1744579425683,0.05616353,126.8,126.77,23.42083161]
[1744579426889,0.05616353,126.8,126.79,7.8892]
[1744579427082,38.78,126.84,126.77,23.42083161]
[1744579427288,2.0886,126.89,126.8,23.3690045]